[Event "Titled Tuesday Blitz March 28 Late 2023"]
[White "Kubatko, Ivan"]
[Black "lluiss"]
[WhiteFideId "24111473"]
[WhiteElo "2285"]
[BlackElo "2199"]
[Result "1/2-1/2"]
[Round "11"]
[TimeControl "180+2"]
[Date "2023.03.28"]
[WhiteClock "0:00:09"]
[BlackClock "0:00:11"]

1. e4 {[%clk 0:03:00]}  c5 {[%clk 0:02:59]} 2. c3 {[%clk 0:02:55]}  d5 {[%clk 0:02:58]} 3. exd5 {[%clk 0:02:55]}  Qxd5 {[%clk 0:02:59]} 4. d4 {[%clk 0:02:55]}  Nf6 {[%clk 0:02:58]} 5. Nf3 {[%clk 0:02:54]}  Bg4 {[%clk 0:02:58]} 6. Be2 {[%clk 0:02:54]}  e6 {[%clk 0:02:57]} 7. h3 {[%clk 0:02:53]}  Bh5 {[%clk 0:02:57]} 8. Na3 {[%clk 0:02:54]}  Nc6 {[%clk 0:02:54]} 9. O-O {[%clk 0:02:47]}  cxd4 {[%clk 0:02:51]} 10. Nb5 {[%clk 0:02:47]}  Rc8 {[%clk 0:02:50]} 11. Nfxd4 {[%clk 0:02:31]}  Nxd4 {[%clk 0:02:43]} 12. Nxd4 {[%clk 0:02:30]}  Bxe2 {[%clk 0:02:38]} 13. Qxe2 {[%clk 0:02:31]}  a6 {[%clk 0:02:25]} 14. Rd1 {[%clk 0:02:27]}  Qe4 {[%clk 0:02:25]} 15. Qxe4 {[%clk 0:02:18]}  Nxe4 {[%clk 0:02:24]} 16. Bf4 {[%clk 0:02:12]}  Bc5 {[%clk 0:02:17]} 17. Be3 {[%clk 0:01:53]}  O-O {[%clk 0:02:00]} 18. Kf1 {[%clk 0:01:53]}  Rfd8 {[%clk 0:01:57]} 19. Ke2 {[%clk 0:01:53]}  g6 {[%clk 0:01:44]} 20. Nb3 {[%clk 0:01:48]}  Bxe3 {[%clk 0:01:38]} 21. Kxe3 {[%clk 0:01:49]}  Nd6 {[%clk 0:01:28]} 22. Nd2 {[%clk 0:01:25]}  Kf8 {[%clk 0:01:19]} 23. Rac1 {[%clk 0:01:22]}  b5 {[%clk 0:01:17]} 24. b3 {[%clk 0:01:14]}  Rc7 {[%clk 0:01:07]} 25. Nb1 {[%clk 0:01:00]}  Nf5+ {[%clk 0:00:58]} 26. Ke2 {[%clk 0:00:59]}  Rcd7 {[%clk 0:00:57]} 27. Rxd7 {[%clk 0:00:58]}  Rxd7 {[%clk 0:00:57]} 28. Nd2 {[%clk 0:00:48]}  Ke7 {[%clk 0:00:47]} 29. g4 {[%clk 0:00:36]}  Nd6 {[%clk 0:00:41]} 30. c4 {[%clk 0:00:36]}  bxc4 {[%clk 0:00:40]} 31. Nxc4 {[%clk 0:00:36]}  Nxc4 {[%clk 0:00:40]} 32. Rxc4 {[%clk 0:00:36]}  Rd5 {[%clk 0:00:35]} 33. b4 {[%clk 0:00:34]}  h5 {[%clk 0:00:33]} 34. a4 {[%clk 0:00:31]}  hxg4 {[%clk 0:00:31]} 35. hxg4 {[%clk 0:00:31]}  Kd6 {[%clk 0:00:30]} 36. Ke3 {[%clk 0:00:27]}  f5 {[%clk 0:00:30]} 37. Rc8 {[%clk 0:00:20]}  fxg4 {[%clk 0:00:21]} 38. Rd8+ {[%clk 0:00:10]}  Ke5 {[%clk 0:00:20]} 39. Rxd5+ {[%clk 0:00:09]}  Kxd5 {[%clk 0:00:15]} 40. Kd3 {[%clk 0:00:05]}  e5 {[%clk 0:00:13]} 41. b5 {[%clk 0:00:04]}  axb5 {[%clk 0:00:12]} 42. axb5 {[%clk 0:00:04]}  Kc5 {[%clk 0:00:10]} 43. Ke4 {[%clk 0:00:05]}  Kxb5 {[%clk 0:00:10]} 44. Kxe5 {[%clk 0:00:06]}  Kc5 {[%clk 0:00:10]} 45. Kf4 {[%clk 0:00:06]}  Kd6 {[%clk 0:00:10]} 46. Kxg4 {[%clk 0:00:06]}  Ke6 {[%clk 0:00:10]} 47. Kg5 {[%clk 0:00:07]}  Kf7 {[%clk 0:00:11]} 48. f4 {[%clk 0:00:08]}  Kg7 {[%clk 0:00:11]} 49. f5 {[%clk 0:00:08]}  gxf5 {[%clk 0:00:11]} 50. Kxf5 {[%clk 0:00:09]} 1/2-1/2


[Site "https://www.chess.com"]

[Event "Titled Tuesday Blitz March 28 Late 2023"]
[White "Rian, Kapriaga"]
[Black "Pirvulescu, Ekaterina"]
[WhiteFideId "7103263"]
[BlackFideId "13506374"]
[WhiteElo "2350"]
[BlackElo "2006"]
[Result "1-0"]
[Round "11"]
[TimeControl "180+2"]
[Date "2023.03.28"]
[WhiteClock "0:00:51"]
[BlackClock "0:00:01"]

1. d4 {[%clk 0:03:00]}  d6 {[%clk 0:02:58]} 2. Nf3 {[%clk 0:02:58]}  g6 {[%clk 0:02:55]} 3. Bf4 {[%clk 0:02:58]}  Bg7 {[%clk 0:02:55]} 4. e3 {[%clk 0:02:58]}  Nf6 {[%clk 0:02:55]} 5. h3 {[%clk 0:02:57]}  O-O {[%clk 0:02:54]} 6. Be2 {[%clk 0:02:57]}  c6 {[%clk 0:02:55]} 7. O-O {[%clk 0:02:56]}  Nbd7 {[%clk 0:02:55]} 8. Bh2 {[%clk 0:02:56]}  Qe8 {[%clk 0:02:56]} 9. c4 {[%clk 0:02:56]}  e5 {[%clk 0:02:50]} 10. Nc3 {[%clk 0:02:56]}  e4 {[%clk 0:02:46]} 11. Nd2 {[%clk 0:02:55]}  d5 {[%clk 0:02:43]} 12. cxd5 {[%clk 0:02:54]}  cxd5 {[%clk 0:02:44]} 13. Nb3 {[%clk 0:02:53]}  Qe6 {[%clk 0:02:40]} 14. a4 {[%clk 0:02:46]}  b6 {[%clk 0:02:40]} 15. a5 {[%clk 0:02:45]}  Bb7 {[%clk 0:02:36]} 16. axb6 {[%clk 0:02:39]}  axb6 {[%clk 0:02:37]} 17. Bb5 {[%clk 0:02:39]}  Rxa1 {[%clk 0:02:29]} 18. Nxa1 {[%clk 0:02:37]}  Ra8 {[%clk 0:02:29]} 19. Nc2 {[%clk 0:02:35]}  Ba6 {[%clk 0:01:56]} 20. Qe2 {[%clk 0:02:35]}  Bxb5 {[%clk 0:01:48]} 21. Qxb5 {[%clk 0:02:34]}  Ra5 {[%clk 0:01:43]} 22. Qb3 {[%clk 0:02:29]}  Bf8 {[%clk 0:01:31]} 23. Nb4 {[%clk 0:02:27]}  Bxb4 {[%clk 0:01:02]} 24. Qxb4 {[%clk 0:02:26]}  Qc6 {[%clk 0:01:00]} 25. Rc1 {[%clk 0:02:22]}  Qa8 {[%clk 0:00:29]} 26. Bf4 {[%clk 0:02:19]}  Kg7 {[%clk 0:00:21]} 27. Qd6 {[%clk 0:02:16]}  Ra1 {[%clk 0:00:19]} 28. Rxa1 {[%clk 0:02:07]}  Qxa1+ {[%clk 0:00:20]} 29. Kh2 {[%clk 0:02:07]}  Qxb2 {[%clk 0:00:20]} 30. Nxd5 {[%clk 0:02:07]}  Qxf2 {[%clk 0:00:12]} 31. Nxf6 {[%clk 0:02:03]}  Nxf6 {[%clk 0:00:13]} 32. Qxb6 {[%clk 0:02:03]}  Nh5 {[%clk 0:00:10]} 33. Be5+ {[%clk 0:02:01]}  Kh6 {[%clk 0:00:07]} 34. d5 {[%clk 0:01:37]}  f6 {[%clk 0:00:05]} 35. Bd6 {[%clk 0:01:29]}  Kg5 {[%clk 0:00:03]} 36. Bc7 {[%clk 0:01:10]}  Ng7 {[%clk 0:00:02]} 37. Bf4+ {[%clk 0:01:06]}  Kh5 {[%clk 0:00:01]} 38. Qb3 {[%clk 0:00:56]}  g5 {[%clk 0:00:01]} 39. Bg3 {[%clk 0:00:52]}  Nf5 {[%clk 0:00:01]} 40. Bxf2 {[%clk 0:00:51]} 1-0


[Site "https://www.chess.com"]

[Event "Titled Tuesday Blitz March 28 Late 2023"]
[White "Matute Escobar, Roxanny"]
[Black "Wang, Alexander J"]
[WhiteFideId "3926028"]
[BlackFideId "30955270"]
[WhiteElo "1732"]
[BlackElo "2304"]
[Result "1-0"]
[Round "11"]
[TimeControl "180+2"]
[Date "2023.03.28"]
[WhiteClock "0:00:44"]
[BlackClock "0:00:20"]

1. e4 {[%clk 0:02:59]}  c5 {[%clk 0:02:59]} 2. Nf3 {[%clk 0:02:59]}  d6 {[%clk 0:02:56]} 3. d4 {[%clk 0:02:59]}  cxd4 {[%clk 0:02:56]} 4. Nxd4 {[%clk 0:03:00]}  Nf6 {[%clk 0:02:57]} 5. Nc3 {[%clk 0:03:00]}  g6 {[%clk 0:02:57]} 6. Be3 {[%clk 0:03:00]}  Bg7 {[%clk 0:02:57]} 7. f3 {[%clk 0:03:00]}  O-O {[%clk 0:02:58]} 8. Bc4 {[%clk 0:03:00]}  Nc6 {[%clk 0:02:58]} 9. Qd2 {[%clk 0:03:00]}  Bd7 {[%clk 0:02:58]} 10. O-O-O {[%clk 0:03:00]}  Ne5 {[%clk 0:02:57]} 11. Bb3 {[%clk 0:03:00]}  Rc8 {[%clk 0:02:57]} 12. h4 {[%clk 0:03:01]}  h5 {[%clk 0:02:57]} 13. Bg5 {[%clk 0:03:01]}  Rc5 {[%clk 0:02:53]} 14. g4 {[%clk 0:03:00]}  hxg4 {[%clk 0:02:52]} 15. f4 {[%clk 0:03:00]}  Nc4 {[%clk 0:02:45]} 16. Qe2 {[%clk 0:03:00]}  b5 {[%clk 0:02:40]} 17. f5 {[%clk 0:02:59]}  Kh7 {[%clk 0:02:28]} 18. h5 {[%clk 0:02:54]}  Nxh5 {[%clk 0:02:21]} 19. Qxg4 {[%clk 0:02:53]}  Ne5 {[%clk 0:02:14]} 20. Rxh5+ {[%clk 0:02:51]}  Kg8 {[%clk 0:02:06]} 21. Qh4 {[%clk 0:02:37]}  gxh5 {[%clk 0:02:00]} 22. Bxe7 {[%clk 0:02:36]}  Qe8 {[%clk 0:01:51]} 23. Qg5 {[%clk 0:02:22]}  Kh7 {[%clk 0:01:38]} 24. Rh1 {[%clk 0:01:51]}  Bh6 {[%clk 0:01:26]} 25. Rxh5 {[%clk 0:01:51]}  Ng4 {[%clk 0:01:26]} 26. Kb1 {[%clk 0:00:52]}  Rg8 {[%clk 0:01:24]} 27. Qh4 {[%clk 0:00:51]}  Bc6 {[%clk 0:00:50]} 28. Nxc6 {[%clk 0:00:46]}  Rxc6 {[%clk 0:00:43]} 29. Nd5 {[%clk 0:00:46]}  f6 {[%clk 0:00:20]} 30. Nxf6+ {[%clk 0:00:44]}  Nxf6 {[%clk 0:00:20]} 31. Rxh6+ {[%clk 0:00:44]}  Kg7 {[%clk 0:00:20]} 32. Qxf6# {[%clk 0:00:44]} 1-0


[Site "https://www.chess.com"]

[Event "Titled Tuesday Blitz March 28 Late 2023"]
[White "Necula, Iulian"]
[Black "Prieto Aranguren, Alain"]
[WhiteFideId "1232380"]
[BlackFideId "2268906"]
[WhiteElo "1790"]
[BlackElo "2209"]
[Result "0-1"]
[Round "11"]
[TimeControl "180+2"]
[Date "2023.03.28"]
[WhiteClock "0:00:08"]
[BlackClock "0:01:23"]

1. d4 {[%clk 0:03:00]}  d5 {[%clk 0:02:50]} 2. Nc3 {[%clk 0:02:59]}  c6 {[%clk 0:02:50]} 3. Bf4 {[%clk 0:02:59]}  g5 {[%clk 0:02:44]} 4. Bxg5 {[%clk 0:02:56]}  Qb6 {[%clk 0:02:44]} 5. Bc1 {[%clk 0:02:40]}  Bg7 {[%clk 0:02:42]} 6. e3 {[%clk 0:02:39]}  Nf6 {[%clk 0:02:40]} 7. Nf3 {[%clk 0:02:38]}  Bg4 {[%clk 0:02:39]} 8. Be2 {[%clk 0:02:38]}  Nbd7 {[%clk 0:02:39]} 9. O-O {[%clk 0:02:37]}  O-O-O {[%clk 0:02:38]} 10. Na4 {[%clk 0:02:35]}  Qc7 {[%clk 0:02:38]} 11. h3 {[%clk 0:02:34]}  h5 {[%clk 0:02:36]} 12. Ng5 {[%clk 0:02:14]}  Rdf8 {[%clk 0:02:34]} 13. f4 {[%clk 0:01:44]}  Bxe2 {[%clk 0:02:23]} 14. Qxe2 {[%clk 0:01:44]}  Bh6 {[%clk 0:02:23]} 15. Nf3 {[%clk 0:01:39]}  Ne4 {[%clk 0:02:22]} 16. Qe1 {[%clk 0:01:27]}  Rfg8 {[%clk 0:02:21]} 17. Nc3 {[%clk 0:01:07]}  Ng3 {[%clk 0:02:20]} 18. Rf2 {[%clk 0:01:07]}  Nf6 {[%clk 0:02:20]} 19. Ne5 {[%clk 0:01:04]}  Ng4 {[%clk 0:02:14]} 20. hxg4 {[%clk 0:01:01]}  hxg4 {[%clk 0:02:13]} 21. Ne2 {[%clk 0:00:56]}  Bxf4 {[%clk 0:02:07]} 22. Rxf4 {[%clk 0:00:53]}  Rh1+ {[%clk 0:02:06]} 23. Kf2 {[%clk 0:00:53]}  Rxe1 {[%clk 0:02:06]} 24. Kxe1 {[%clk 0:00:53]}  Ne4 {[%clk 0:01:59]} 25. Nxf7 {[%clk 0:00:46]}  e5 {[%clk 0:01:52]} 26. Nxe5 {[%clk 0:00:45]}  Qh7 {[%clk 0:01:49]} 27. Rf1 {[%clk 0:00:15]}  Qh2 {[%clk 0:01:38]} 28. Nf4 {[%clk 0:00:10]}  Qg3+ {[%clk 0:01:31]} 29. Ke2 {[%clk 0:00:08]}  Rf8 {[%clk 0:01:26]} 30. Bd2 {[%clk 0:00:08]}  Rxf4 {[%clk 0:01:24]} 31. exf4 {[%clk 0:00:07]}  Qxg2+ {[%clk 0:01:23]} 32. Kd3 {[%clk 0:00:08]}  Qxd2# {[%clk 0:01:23]} 0-1


[Site "https://www.chess.com"]

[Event "Titled Tuesday Blitz March 28 Late 2023"]
[White "Narva, Triin"]
[Black "dorpato"]
[WhiteFideId "4502680"]
[WhiteElo "1944"]
[BlackElo "2067"]
[Result "1-0"]
[Round "11"]
[TimeControl "180+2"]
[Date "2023.03.28"]
[WhiteClock "0:00:02"]
[BlackClock "0:00:03"]

1. e4 {[%clk 0:02:49]}  c5 {[%clk 0:02:59]} 2. Nf3 {[%clk 0:02:49]}  g6 {[%clk 0:02:59]} 3. c3 {[%clk 0:02:49]}  Bg7 {[%clk 0:02:58]} 4. d4 {[%clk 0:02:49]}  cxd4 {[%clk 0:02:58]} 5. cxd4 {[%clk 0:02:50]}  d5 {[%clk 0:02:58]} 6. exd5 {[%clk 0:02:48]}  Nf6 {[%clk 0:02:58]} 7. Bb5+ {[%clk 0:02:27]}  Nbd7 {[%clk 0:02:57]} 8. Nc3 {[%clk 0:02:22]}  O-O {[%clk 0:02:57]} 9. O-O {[%clk 0:02:22]}  Nb6 {[%clk 0:02:57]} 10. Re1 {[%clk 0:02:15]}  Nbxd5 {[%clk 0:02:50]} 11. Bg5 {[%clk 0:02:11]}  Bg4 {[%clk 0:02:41]} 12. h3 {[%clk 0:02:09]}  Nxc3 {[%clk 0:02:33]} 13. bxc3 {[%clk 0:02:07]}  Bd7 {[%clk 0:02:28]} 14. Bd3 {[%clk 0:02:01]}  Rc8 {[%clk 0:02:23]} 15. Qd2 {[%clk 0:01:57]}  Re8 {[%clk 0:02:18]} 16. c4 {[%clk 0:01:13]}  Qc7 {[%clk 0:02:05]} 17. Rab1 {[%clk 0:01:11]}  b6 {[%clk 0:02:03]} 18. Ne5 {[%clk 0:00:42]}  Rcd8 {[%clk 0:01:44]} 19. Qf4 {[%clk 0:00:37]}  Qd6 {[%clk 0:01:31]} 20. d5 {[%clk 0:00:33]}  Rf8 {[%clk 0:01:09]} 21. Qh4 {[%clk 0:00:33]}  Rde8 {[%clk 0:00:42]} 22. Nf3 {[%clk 0:00:23]}  Bc8 {[%clk 0:00:33]} 23. Re2 {[%clk 0:00:20]}  Bd7 {[%clk 0:00:20]} 24. Rbe1 {[%clk 0:00:19]}  b5 {[%clk 0:00:20]} 25. Bh6 {[%clk 0:00:07]}  bxc4 {[%clk 0:00:19]} 26. Bxc4 {[%clk 0:00:08]}  Nh5 {[%clk 0:00:14]} 27. Bxg7 {[%clk 0:00:07]}  Nxg7 {[%clk 0:00:14]} 28. Rxe7 {[%clk 0:00:07]}  Rxe7 {[%clk 0:00:14]} 29. Qxe7 {[%clk 0:00:07]}  Qxe7 {[%clk 0:00:13]} 30. Rxe7 {[%clk 0:00:07]}  Bf5 {[%clk 0:00:13]} 31. Rxa7 {[%clk 0:00:07]}  Rc8 {[%clk 0:00:12]} 32. Bb3 {[%clk 0:00:06]}  Rd8 {[%clk 0:00:12]} 33. Ne5 {[%clk 0:00:05]}  f6 {[%clk 0:00:11]} 34. d6+ {[%clk 0:00:04]}  Kf8 {[%clk 0:00:08]} 35. Rf7+ {[%clk 0:00:03]}  Kg8 {[%clk 0:00:06]} 36. Rd7+ {[%clk 0:00:03]}  Be6 {[%clk 0:00:05]} 37. Rxd8+ {[%clk 0:00:03]}  Ne8 {[%clk 0:00:03]} 38. Bxe6+ {[%clk 0:00:03]}  Kf8 {[%clk 0:00:03]} 39. Ra8 {[%clk 0:00:02]} 1-0


[Site "https://www.chess.com"]

[Event "Titled Tuesday Blitz March 28 Late 2023"]
[White "Stanisz, Patryk"]
[Black "Toma, Katarzyna"]
[WhiteFideId "1123106"]
[BlackFideId "1119907"]
[WhiteElo "2069"]
[BlackElo "2149"]
[Result "1-0"]
[Round "11"]
[TimeControl "180+2"]
[Date "2023.03.28"]
[WhiteClock "0:00:43"]
[BlackClock "0:00:18"]

1. d4 {[%clk 0:03:00]}  Nf6 {[%clk 0:02:53]} 2. c4 {[%clk 0:03:00]}  g6 {[%clk 0:02:53]} 3. Nc3 {[%clk 0:03:00]}  d5 {[%clk 0:02:53]} 4. Nf3 {[%clk 0:02:59]}  Bg7 {[%clk 0:02:52]} 5. Qb3 {[%clk 0:03:00]}  dxc4 {[%clk 0:02:51]} 6. Qxc4 {[%clk 0:03:01]}  a6 {[%clk 0:02:51]} 7. Bf4 {[%clk 0:03:01]}  b5 {[%clk 0:02:45]} 8. Qxc7 {[%clk 0:02:58]}  Qxc7 {[%clk 0:02:44]} 9. Bxc7 {[%clk 0:02:58]}  b4 {[%clk 0:02:42]} 10. Na4 {[%clk 0:02:41]}  Nd5 {[%clk 0:02:41]} 11. Bg3 {[%clk 0:02:33]}  Bd7 {[%clk 0:02:40]} 12. Nc5 {[%clk 0:02:33]}  Nc6 {[%clk 0:02:32]} 13. e3 {[%clk 0:02:26]}  Bg4 {[%clk 0:02:24]} 14. Be2 {[%clk 0:02:23]}  O-O {[%clk 0:02:14]} 15. h3 {[%clk 0:02:19]}  Bc8 {[%clk 0:02:05]} 16. O-O {[%clk 0:02:11]}  f5 {[%clk 0:01:29]} 17. Bc4 {[%clk 0:01:56]}  e6 {[%clk 0:01:28]} 18. Rac1 {[%clk 0:01:43]}  Na5 {[%clk 0:01:18]} 19. Bxd5 {[%clk 0:01:28]}  exd5 {[%clk 0:01:17]} 20. b3 {[%clk 0:01:22]}  h6 {[%clk 0:00:53]} 21. Nd3 {[%clk 0:01:13]}  Nb7 {[%clk 0:00:38]} 22. Nxb4 {[%clk 0:01:04]}  a5 {[%clk 0:00:37]} 23. Nxd5 {[%clk 0:01:01]}  a4 {[%clk 0:00:33]} 24. b4 {[%clk 0:00:59]}  g5 {[%clk 0:00:22]} 25. Be5 {[%clk 0:00:55]}  Bxe5 {[%clk 0:00:19]} 26. Nxe5 {[%clk 0:00:55]}  f4 {[%clk 0:00:18]} 27. Rc7 {[%clk 0:00:43]} 1-0


[Site "https://www.chess.com"]

[Event "Titled Tuesday Blitz March 28 Late 2023"]
[White "Barria Santos, Jose Guilherme"]
[Black "Bongo Akanga Ndjila, Barthelemy"]
[WhiteFideId "1939300"]
[BlackFideId "10609431"]
[WhiteElo "2301"]
[BlackElo "1768"]
[Result "1-0"]
[Round "11"]
[TimeControl "180+2"]
[Date "2023.03.28"]
[WhiteClock "0:00:04"]
[BlackClock "0:00:09"]

1. e4 {[%clk 0:03:00]}  e6 {[%clk 0:02:45]} 2. d4 {[%clk 0:02:59]}  d5 {[%clk 0:02:46]} 3. Nc3 {[%clk 0:02:59]}  Nf6 {[%clk 0:02:43]} 4. e5 {[%clk 0:02:59]}  Nfd7 {[%clk 0:02:43]} 5. Qg4 {[%clk 0:02:59]}  g6 {[%clk 0:02:41]} 6. Nf3 {[%clk 0:02:53]}  c5 {[%clk 0:02:40]} 7. Bf4 {[%clk 0:02:45]}  Nc6 {[%clk 0:02:29]} 8. O-O-O {[%clk 0:02:44]}  h5 {[%clk 0:02:24]} 9. Qg3 {[%clk 0:02:43]}  a6 {[%clk 0:02:20]} 10. h4 {[%clk 0:02:36]}  Nxd4 {[%clk 0:02:13]} 11. Nxd4 {[%clk 0:02:22]}  cxd4 {[%clk 0:02:13]} 12. Rxd4 {[%clk 0:02:21]}  Qb6 {[%clk 0:02:03]} 13. Rd2 {[%clk 0:02:16]}  Bc5 {[%clk 0:01:33]} 14. Na4 {[%clk 0:02:04]}  Qa5 {[%clk 0:01:28]} 15. Nxc5 {[%clk 0:02:03]}  Nxc5 {[%clk 0:01:26]} 16. f3 {[%clk 0:01:23]}  Qxa2 {[%clk 0:01:20]} 17. Kd1 {[%clk 0:00:54]}  Qa1+ {[%clk 0:01:14]} 18. Ke2 {[%clk 0:00:53]}  Qxb2 {[%clk 0:01:14]} 19. Be3 {[%clk 0:00:48]}  Nd7 {[%clk 0:01:08]} 20. Bd4 {[%clk 0:00:47]}  Qb5+ {[%clk 0:01:06]} 21. Kf2 {[%clk 0:00:46]}  Qb4 {[%clk 0:01:03]} 22. c3 {[%clk 0:00:43]}  Qe7 {[%clk 0:01:02]} 23. Bd3 {[%clk 0:00:42]}  O-O {[%clk 0:00:58]} 24. Bxg6 {[%clk 0:00:20]}  fxg6 {[%clk 0:00:57]} 25. Qxg6+ {[%clk 0:00:20]}  Kh8 {[%clk 0:00:51]} 26. Qxh5+ {[%clk 0:00:19]}  Qh7 {[%clk 0:00:49]} 27. Qg4 {[%clk 0:00:17]}  Nb8 {[%clk 0:00:47]} 28. Be3 {[%clk 0:00:16]}  Nc6 {[%clk 0:00:46]} 29. Qg3 {[%clk 0:00:10]}  Bd7 {[%clk 0:00:44]} 30. Bg5 {[%clk 0:00:11]}  Rae8 {[%clk 0:00:37]} 31. Bf6+ {[%clk 0:00:11]}  Rxf6 {[%clk 0:00:36]} 32. exf6 {[%clk 0:00:12]}  Rf8 {[%clk 0:00:35]} 33. Qd6 {[%clk 0:00:10]}  Rxf6 {[%clk 0:00:32]} 34. g4 {[%clk 0:00:06]}  Kg7 {[%clk 0:00:27]} 35. g5 {[%clk 0:00:05]}  Rf7 {[%clk 0:00:27]} 36. h5 {[%clk 0:00:04]}  Qg8 {[%clk 0:00:22]} 37. g6 {[%clk 0:00:04]}  Re7 {[%clk 0:00:22]} 38. h6+ {[%clk 0:00:03]}  Kxg6 {[%clk 0:00:22]} 39. Rg1+ {[%clk 0:00:04]}  Kh7 {[%clk 0:00:20]} 40. Rxg8 {[%clk 0:00:05]}  Kxg8 {[%clk 0:00:20]} 41. Qg3+ {[%clk 0:00:05]}  Kh7 {[%clk 0:00:20]} 42. Qg5 {[%clk 0:00:04]}  e5 {[%clk 0:00:19]} 43. Rd1 {[%clk 0:00:03]}  Be6 {[%clk 0:00:17]} 44. Rg1 {[%clk 0:00:03]}  e4 {[%clk 0:00:16]} 45. Qf6 {[%clk 0:00:03]}  e3+ {[%clk 0:00:10]} 46. Ke1 {[%clk 0:00:02]}  Bg8 {[%clk 0:00:09]} 47. Rg7+ {[%clk 0:00:03]}  Rxg7 {[%clk 0:00:09]} 48. Qxg7# {[%clk 0:00:04]} 1-0


[Site "https://www.chess.com"]